bitfinex/quotes_BTCUSD_20250505
["timestamp","ask_amount","ask_price","bid_price","bid_amount"]
[1746480732361,2.0834727,94794.0,94793.0,0.72657225]
[1746480733910,2.10001646,94794.0,94793.0,0.74277225]
[1746480737033,2.11049053,94794.0,94793.0,0.74277225]
[1746480738596,2.09394677,94794.0,94793.0,0.74277225]
[1746480738857,2.09394677,94794.0,94793.0,0.72657225]
[1746480739543,2.09394677,94794.0,94793.0,0.74267225]
[1746480739743,2.13642146,94794.0,94793.0,0.71077225]
[1746480739961,2.15152146,94794.0,94793.0,0.71077225]
[1746480740542,2.13642146,94794.0,94793.0,0.70977225]
[1746480740940,2.11248762,94794.0,94793.0,0.70977225]
[1746480741235,2.11548762,94794.0,94793.0,0.70977225]
[1746480742167,2.10501355,94794.0,94793.0,0.70977225]
[1746480742997,2.12155827,94794.0,94793.0,0.70977225]
[1746480744248,2.15330927,94794.0,94793.0,0.70977225]
[1746480746793,2.13676455,94794.0,94793.0,0.70977225]
[1746480748456,2.14738969,94794.0,94793.0,0.70277225]
[1746480748889,2.16348969,94794.0,94793.0,0.70277225]
[1746480749071,2.17908969,94794.0,94793.0,0.70277225]
[1746480749299,2.16348969,94794.0,94793.0,0.70277225]
[1746480753011,2.13676455,94794.0,94793.0,0.70277225]
[1746480755257,2.15226455,94794.0,94793.0,0.70277225]
[1746480755389,2.16816455,94794.0,94793.0,0.69577225]
[1746480755815,2.15226455,94794.0,94793.0,0.69577225]
[1746480757096,2.1625909,94794.0,94793.0,0.69577225]
[1746480762376,2.15226455,94794.0,94793.0,0.68877225]
[1746480763132,2.13676455,94794.0,94793.0,0.68877225]
[1746480766883,2.13376455,94794.0,94793.0,0.68877225]
[1746480767031,2.14126509,94794.0,94793.0,0.68877225]
[1746480767227,2.15126509,94794.0,94793.0,0.63587862]
[1746480768175,2.14076455,94794.0,94793.0,0.63587862]
[1746480768346,2.14076455,94794.0,94793.0,0.62961132]
[1746480769564,2.15656455,94794.0,94793.0,0.62261132]
[1746480770223,2.19248154,94794.0,94793.0,0.62261132]
[1746480770428,2.22638154,94794.0,94793.0,0.62261132]
[1746480771638,2.19292717,94794.0,94793.0,0.62261132]
[1746480772422,2.24292717,94794.0,94793.0,0.62261132]
[1746480772553,2.25852717,94794.0,94793.0,0.62261132]
[1746480773355,2.24292717,94794.0,94793.0,0.62261132]
[1746480774327,2.25812717,94794.0,94793.0,0.62261132]
[1746480774548,2.25812717,94794.0,94793.0,0.56007773]
[1746480774827,0.56656473,94776.0,94775.0,0.001]
[1746480775128,0.702787,94776.0,94775.0,0.001]
[1746480775474,0.73915336,94776.0,94775.0,0.001]
[1746480775873,0.80565336,94776.0,94775.0,0.001]
[1746480776203,0.82085336,94776.0,94775.0,0.001]
[1746480776413,1.13337365,94776.0,94775.0,0.001]
[1746480776613,0.35055331,94757.0,94754.0,0.0164]
[1746480776785,0.01454085,94756.0,94755.0,0.0164]
[1746480776983,0.07307782,94756.0,94755.0,0.0164]
[1746480777259,0.64054671,94756.0,94755.0,0.0164]
[1746480777946,0.64054671,94756.0,94755.0,0.01685392]
[1746480778366,0.84054671,94756.0,94755.0,0.01685392]
[1746480778855,1.34054671,94756.0,94755.0,0.01685392]
[1746480779057,1.34154671,94756.0,94755.0,0.00445392]
[1746480779318,1.34254671,94756.0,94755.0,0.00545392]
[1746480779619,1.34254671,94756.0,94755.0,0.02185392]
[1746480779824,1.35909738,94756.0,94755.0,0.02185392]
[1746480779975,1.35909738,94756.0,94755.0,0.02085392]
[1746480780322,1.36009738,94756.0,94755.0,0.00445392]
[1746480780476,1.35909738,94756.0,94755.0,0.00045392]
[1746480780921,1.34254671,94756.0,94755.0,0.00045392]
[1746480781088,1.34354671,94756.0,94755.0,0.00245392]
[1746480781477,1.34354671,94756.0,94755.0,0.00245392]
[1746480783331,1.51046898,94756.0,94755.0,0.00245392]
[1746480783530,1.58740282,94756.0,94755.0,0.00245392]
[1746480783759,1.60395524,94756.0,94755.0,0.00245392]
[1746480784153,1.60295524,94756.0,94755.0,0.00045392]
[1746480784358,1.58613825,94756.0,94755.0,0.00145392]
[1746480784558,1.55920441,94756.0,94755.0,0.00145392]
[1746480784839,1.58882277,94756.0,94755.0,0.00045392]
[1746480785067,1.58582277,94756.0,94755.0,0.00045392]
[1746480785304,1.58582277,94756.0,94755.0,0.00145392]
[1746480785305,1.58882277,94756.0,94755.0,0.00145392]
[1746480785652,1.58782277,94756.0,94755.0,0.00145392]
[1746480786034,1.59182277,94756.0,94755.0,0.00245392]
[1746480787592,1.59182277,94756.0,94751.0,0.001]
[1746480787593,0.61661818,94752.0,94751.0,0.001]
[1746480787798,0.61661818,94752.0,94719.0,0.0157]
[1746480787799,0.27666275,94732.0,94719.0,0.0308]
[1746480787962,0.7809311,94732.0,94713.0,0.0151]
[1746480788166,0.80786494,94732.0,94713.0,0.0151]
[1746480788352,0.92848523,94732.0,94713.0,0.0151]
[1746480788759,0.56670733,94712.0,94705.0,0.015]
[1746480788962,0.70047568,94712.0,94705.0,0.015]
[1746480789169,0.70047568,94712.0,94711.0,0.0188]
[1746480789170,0.71918519,94712.0,94711.0,0.0188]
[1746480789417,0.73418519,94712.0,94711.0,0.0188]
[1746480789613,0.35970951,94712.0,94711.0,0.0188]
[1746480789994,0.36016231,94712.0,94711.0,0.0188]
[1746480790193,0.36016231,94712.0,94711.0,0.0208]
[1746480791700,0.36016231,94712.0,94711.0,0.037]
[1746480791907,0.36116231,94712.0,94711.0,0.038]
[1746480792374,0.86116231,94712.0,94711.0,0.038]
[1746480792555,0.98324016,94712.0,94711.0,0.038]
[1746480792933,0.9666826,94712.0,94711.0,0.038]
[1746480796548,0.98324014,94712.0,94711.0,0.038]
[1746480796740,0.9666826,94712.0,94711.0,0.038]
[1746480799395,1.17784908,94712.0,94711.0,0.038]
[1746480801015,1.19440692,94712.0,94711.0,0.038]
[1746480802618,1.20894777,94712.0,94711.0,0.006]
[1746480802790,1.26778161,94712.0,94711.0,0.006]
[1746480802999,1.26778161,94712.0,94700.0,0.001]
[1746480803000,0.56673186,94701.0,94700.0,0.001]
[1746480803205,0.58644137,94701.0,94700.0,0.001]
[1746480803758,0.58313186,94701.0,94700.0,0.001]
[1746480804080,0.56673186,94701.0,94700.0,0.001]
[1746480804583,0.56773186,94701.0,94700.0,0.002]
[1746480804784,1.17325215,94701.0,94700.0,0.002]
[1746480805420,1.17425215,94701.0,94700.0,0.003]
[1746480805984,1.19081301,94701.0,94700.0,0.003]
[1746480806242,1.17425215,94701.0,94700.0,0.003]
[1746480806420,1.37425215,94701.0,94700.0,0.003]
[1746480807898,1.5080205,94701.0,94700.0,0.003]
[1746480811305,0.56575193,94692.0,94691.0,0.002]
[1746480811512,0.56575193,94692.0,94691.0,0.0179]
[1746480812361,0.56675193,94692.0,94691.0,0.0199]
[1746480813007,1.06675193,94692.0,94691.0,0.0199]
[1746480813426,1.06775193,94692.0,94691.0,0.0199]
[1746480813639,1.17327222,94692.0,94691.0,0.0199]
[1746480813849,1.17327222,94692.0,94691.0,0.004]
[1746480814064,1.17327222,94692.0,94691.0,0.0192]
[1746480814282,1.37327222,94692.0,94691.0,0.0192]
[1746480814734,1.38983383,94692.0,94691.0,0.0192]
[1746480817442,1.38983383,94692.0,94691.0,0.004]
[1746480818041,1.37427222,94692.0,94691.0,0.004]
[1746480818886,1.40391415,94692.0,94691.0,0.004]
[1746480819092,1.40391415,94692.0,94678.0,0.015]
[1746480819093,0.56578093,94679.0,94678.0,0.0303]
[1746480819332,0.55125347,94673.0,94672.0,0.0163]
[1746480819977,0.56579432,94673.0,94672.0,0.0163]
[1746480820325,0.56579432,94673.0,94672.0,0.01643612]
[1746480820582,0.56579432,94673.0,94672.0,0.00013612]
[1746480820825,0.67131461,94673.0,94672.0,0.00013612]
[1746480821648,0.67331461,94673.0,94672.0,0.00013612]
[1746480821858,0.70295848,94673.0,94672.0,0.00013612]
[1746480822057,1.20295848,94673.0,94672.0,0.00013612]
[1746480822258,1.20195848,94673.0,94672.0,0.00013612]
[1746480822420,1.40195848,94673.0,94672.0,0.00013612]
[1746480822625,1.37331461,94673.0,94672.0,0.00013612]
[1746480822869,1.40295444,94673.0,94672.0,0.00013612]
[1746480823070,1.40395444,94673.0,94672.0,0.00013612]
[1746480823271,1.6552282,94673.0,94672.0,0.00013612]
[1746480823474,1.6552282,94673.0,94651.0,0.003]
[1746480823475,0.59944119,94652.0,94651.0,0.003]
[1746480823678,0.59944119,94652.0,94631.0,0.0184]
[1746480823679,0.56588584,94632.0,94631.0,0.0184]
[1746480823876,0.56688584,94632.0,94631.0,0.003]
[1746480824123,0.56688584,94632.0,94631.0,0.00313615]
[1746480824124,0.70203534,94632.0,94631.0,0.00313615]
[1746480824618,0.67240613,94632.0,94631.0,0.00313615]
[1746480824997,1.17240613,94632.0,94631.0,0.00313615]
[1746480825197,1.38998034,94632.0,94631.0,0.00313615]
[1746480825796,1.38898034,94632.0,94631.0,0.00313615]
[1746480825996,1.28346005,94632.0,94631.0,0.00313615]
[1746480826299,1.28346005,94632.0,94612.0,0.0154]
[1746480826300,0.21135656,94627.0,94625.0,0.04709652]
[1746480826513,0.01056769,94628.0,94625.0,0.00013617]
[1746480826514,0.2113584,94626.0,94625.0,0.00013617]
[1746480826880,0.4864,94632.0,94630.0,0.21134851]
[1746480827118,0.4864,94632.0,94631.0,0.0309]
[1746480827330,0.4854,94632.0,94631.0,0.0309]
[1746480827542,0.21132522,94641.0,94633.0,0.01056713]
[1746480827810,0.01056624,94641.0,94637.0,0.21133217]
[1746480828035,0.01056624,94641.0,94639.0,0.0154]
[1746480828231,0.35056635,94640.0,94637.0,0.21033217]
[1746480828439,0.34,94640.0,94638.0,0.21033004]
[1746480828637,0.01969774,94639.0,94635.0,0.21133763]
[1746480828835,0.01969774,94639.0,94637.0,0.21133221]
[1746480829087,0.01969774,94639.0,94638.0,0.0154]
[1746480829289,0.01969774,94639.0,94638.0,0.0144]
[1746480830177,0.02069774,94639.0,94638.0,0.0144]
[1746480830616,0.01969774,94639.0,94638.0,0.0194]
[1746480830870,0.02069774,94639.0,94638.0,0.0408]
[1746480831040,0.02069774,94639.0,94638.0,0.04036944]
[1746480831246,0.02169774,94639.0,94638.0,0.04536944]
[1746480831597,0.36169774,94639.0,94638.0,0.04536944]
[1746480832783,0.36169774,94639.0,94638.0,0.01556944]
[1746480832952,0.66987149,94639.0,94638.0,0.01556944]
[1746480833264,0.85463984,94639.0,94638.0,0.005]
[1746480833461,0.88533984,94639.0,94638.0,0.005]
[1746480833673,0.8656421,94639.0,94638.0,0.005]
[1746480833812,0.8646421,94639.0,94638.0,0.005]
[1746480834008,1.5646421,94639.0,94638.0,0.005]
[1746480834470,1.43187375,94639.0,94638.0,0.005]
[1746480835097,1.43287375,94639.0,94638.0,0.005]
[1746480835244,0.2113584,94626.0,94605.0,0.0155]
[1746480835447,0.65265433,94626.0,94605.0,0.0155]
[1746480835647,0.65265433,94626.0,94604.0,0.0159]
[1746480835849,0.6692292,94626.0,94604.0,0.0159]
[1746480836054,0.65265433,94626.0,94604.0,0.0159]
[1746480836481,0.65365433,94626.0,94604.0,0.0159]
[1746480837233,1.35365433,94626.0,94604.0,0.0159]
[1746480837588,1.35465433,94626.0,94625.0,0.00413617]
[1746480838032,1.15465433,94626.0,94625.0,0.00413617]
[1746480838243,1.17015433,94626.0,94625.0,0.00113617]
[1746480838453,1.23585433,94626.0,94625.0,0.00113617]
[1746480838658,1.23685433,94626.0,94625.0,0.00413617]
[1746480838849,1.27735304,94626.0,94625.0,0.00413617]
[1746480839243,1.47735304,94626.0,94625.0,0.00413617]
[1746480840267,1.45977636,94626.0,94625.0,0.00113617]
[1746480840487,0.55138967,94612.0,94611.0,0.00113617]
[1746480840694,0.67145081,94612.0,94611.0,0.00123211]
[1746480840893,0.69113184,94612.0,94611.0,0.00123211]
[1746480841708,0.69213184,94612.0,94611.0,0.00223211]
[1746480841874,0.58661155,94612.0,94611.0,0.00223211]
[1746480842515,1.08661155,94612.0,94611.0,0.00223211]
[1746480844093,0.52068103,94612.0,94611.0,0.03343211]
[1746480844246,0.86068103,94612.0,94611.0,0.03343211]
[1746480844594,0.52068103,94612.0,94611.0,0.03343211]
[1746480845073,0.02068103,94612.0,94611.0,0.24482402]
[1746480845270,0.02068103,94612.0,94611.0,0.24894175]
[1746480845679,0.001,94626.0,94620.0,0.2113718]
[1746480845917,0.001,94626.0,94620.0,0.2428718]
[1746480846087,0.001,94626.0,94620.0,0.24692245]
[1746480846707,0.001,94626.0,94625.0,0.21136063]
[1746480846874,0.001,94626.0,94625.0,0.24186063]
[1746480847074,0.001,94626.0,94625.0,0.24590022]
[1746480847288,0.001,94626.0,94625.0,0.24490022]
[1746480847898,0.001,94626.0,94625.0,0.24790022]
[1746480848255,0.001,94626.0,94625.0,0.03853959]
[1746480848256,0.002,94626.0,94625.0,0.03853959]
[1746480849879,0.002,94626.0,94625.0,0.04065284]
[1746480850036,0.002,94626.0,94625.0,0.03853959]
[1746480851225,0.01857092,94626.0,94625.0,0.03853959]
[1746480852254,0.01857092,94626.0,94625.0,0.04065288]
[1746480855351,0.01757092,94626.0,94625.0,0.03765288]
[1746480856647,0.01857092,94626.0,94625.0,0.04565288]
[1746480857024,0.002,94626.0,94625.0,0.04565288]
[1746480857815,0.02174354,94626.0,94625.0,0.04565288]
[1746480858497,0.02074354,94626.0,94625.0,0.04565288]
[1746480859266,0.02074354,94626.0,94625.0,0.25701351]
[1746480859423,0.02074354,94626.0,94625.0,0.25490022]
[1746480861371,0.03731391,94626.0,94625.0,0.25490022]
[1746480867381,0.03731391,94626.0,94625.0,0.25458806]
[1746480870139,0.02074354,94626.0,94625.0,0.25458806]
[1746480873425,0.02074354,94626.0,94625.0,5.30458806]
[1746480873646,0.02074354,94626.0,94625.0,0.85378806]
[1746480875519,0.01974354,94626.0,94625.0,0.84578806]
[1746480875765,0.01974354,94626.0,94625.0,0.85178806]
[1746480878775,0.01974354,94626.0,94625.0,0.25258806]
[1746480879002,0.01974354,94626.0,94625.0,5.09448806]
[1746480883562,0.01974354,94626.0,94625.0,3.64018806]
[1746480884235,0.22188278,94645.0,94641.0,0.2218891]
[1746480884451,0.01980607,94644.0,94642.0,0.2113224]
[1746480884657,0.01980607,94644.0,94643.0,0.0163]
[1746480885142,0.0363735,94644.0,94643.0,0.23127116]
[1746480885564,0.0363735,94644.0,94643.0,0.2313671]
[1746480885769,0.0363735,94644.0,94643.0,0.2496671]
[1746480886630,0.0363735,94644.0,94643.0,0.2476671]
[1746480886839,0.0363735,94644.0,94643.0,0.2496671]
[1746480888060,0.01980607,94644.0,94643.0,0.2496671]
[1746480888313,0.01980607,94644.0,94643.0,0.2476671]
[1746480888693,0.01980607,94644.0,94643.0,0.2506671]
[1746480889032,0.01980607,94644.0,94643.0,0.2476671]
[1746480889237,0.01980607,94644.0,94643.0,0.2516671]
[1746480890821,0.01980607,94644.0,94643.0,0.4016671]
[1746480891275,0.01980607,94644.0,94643.0,0.7416671]
[1746480891495,0.001,94645.0,94644.0,0.5513182]
[1746480891697,0.001,94645.0,94644.0,0.5834182]
[1746480891894,0.001,94645.0,94644.0,0.58698588]
[1746480892293,0.001,94645.0,94644.0,5.65052673]
[1746480892883,0.002,94645.0,94644.0,5.65752673]
[1746480893082,0.002,94645.0,94644.0,5.65052673]
[1746480893450,0.003,94645.0,94644.0,5.65752673]
[1746480896293,0.003,94645.0,94644.0,6.17662673]
[1746480896500,0.003,94645.0,94644.0,6.22662673]
[1746480897884,0.001,94645.0,94644.0,6.22740535]
[1746480898366,0.001,94645.0,94644.0,6.23140535]
[1746480898944,0.001,94645.0,94644.0,6.34280535]
[1746480900128,0.01976202,94674.0,94673.0,0.21125347]
[1746480900508,0.01976202,94674.0,94673.0,0.21561424]
[1746480901333,0.01976202,94674.0,94673.0,0.21571018]
[1746480902726,0.03632409,94674.0,94673.0,0.21571018]
[1746480913359,0.01976202,94674.0,94673.0,0.21571018]
[1746480915713,0.03632408,94674.0,94673.0,0.21571018]
[1746480916280,0.03614296,94674.0,94673.0,0.21571018]
[1746480931829,0.03614296,94674.0,94673.0,0.22212845]
[1746480934141,0.0195809,94674.0,94673.0,0.22212845]
[1746480934921,0.0195809,94674.0,94673.0,0.32212845]
[1746480935117,0.0195809,94674.0,94673.0,0.32812845]
[1746480935323,0.0195809,94674.0,94673.0,0.32212845]
[1746480942623,0.0195809,94674.0,94673.0,0.33812845]
[1746480943035,0.0195809,94674.0,94673.0,0.35462845]
[1746480944104,0.0205809,94674.0,94673.0,0.35462845]
[1746480945637,0.0205809,94674.0,94673.0,5.40462845]
[1746480946146,0.0195809,94674.0,94673.0,5.40462845]
[1746480946766,0.0195809,94674.0,94673.0,5.74462845]
[1746480946972,0.0195809,94674.0,94673.0,5.74762845]
[1746480947412,0.0195809,94674.0,94673.0,5.8735693]
[1746480948409,0.003,94689.0,94688.0,0.22772]
[1746480948623,0.003,94689.0,94688.0,5.27772]
[1746480948818,0.02280597,94689.0,94688.0,5.30485921]
[1746480950553,0.02280597,94689.0,94688.0,5.30585921]
[1746480951163,0.02280597,94689.0,94688.0,5.66040006]
[1746480951368,0.02280597,94689.0,94688.0,5.66640006]
[1746480951561,0.02280597,94689.0,94688.0,5.66040006]
[1746480952534,0.02280597,94689.0,94688.0,5.65940006]
[1746480952944,0.003,94689.0,94688.0,5.66140006]
[1746480953371,0.003,94689.0,94688.0,5.66340006]
[1746480954906,0.003,94689.0,94688.0,6.09330485]
[1746480955955,0.01976484,94701.0,94700.0,0.21119324]
[1746480956330,0.01976484,94701.0,94700.0,0.22169626]
[1746480956936,0.01976484,94701.0,94700.0,0.23749626]
[1746480957339,0.01976484,94701.0,94700.0,0.22169626]
[1746480957536,0.01976484,94701.0,94700.0,0.23749626]
[1746480960235,0.003,94709.0,94708.0,0.2111754]
[1746480960591,0.02275073,94709.0,94708.0,0.22160445]
[1746480962209,0.02475073,94709.0,94708.0,0.22160445]
[1746480964958,0.02475073,94709.0,94708.0,0.23222278]
[1746480965159,0.02475073,94709.0,94708.0,0.23822278]
[1746480965459,0.02475073,94709.0,94708.0,0.23222278]
[1746480965795,0.02475073,94709.0,94708.0,0.24862278]
[1746480966160,0.02475073,94709.0,94708.0,0.23222278]
[1746480967808,0.02275073,94709.0,94708.0,0.23222278]
[1746480968646,0.02275073,94709.0,94708.0,0.23322278]
[1746480969892,0.02275073,94709.0,94708.0,0.24962278]
[1746480971086,0.02275073,94709.0,94708.0,0.26472278]
[1746480971283,0.02275073,94709.0,94708.0,0.24962278]
[1746480971692,0.02275073,94709.0,94708.0,5.31552278]
[1746480972715,0.003,94709.0,94708.0,5.31552278]
[1746480973822,0.0227697,94709.0,94708.0,5.31552278]
[1746480974004,0.003,94709.0,94708.0,5.31552278]
[1746480976015,0.00280787,94709.0,94708.0,5.31552278]
[1746480976410,0.001,94719.0,94718.0,0.2111531]
[1746480976787,0.001,94719.0,94718.0,0.22146314]
[1746480977003,0.001,94719.0,94718.0,5.27146314]
[1746480977184,0.001,94719.0,94718.0,5.28696314]
[1746480977185,0.02078009,94719.0,94718.0,5.28696314]
[1746480978226,0.02178009,94719.0,94718.0,5.28696314]
[1746480979136,0.02078009,94719.0,94718.0,5.28696314]
[1746480979349,0.02178009,94719.0,94718.0,5.28696314]
[1746480979558,0.001,94719.0,94718.0,5.28696314]
[1746480980005,0.002,94719.0,94718.0,5.30346314]
[1746480980266,0.002,94719.0,94718.0,6.06256314]
[1746480980969,0.003,94729.0,94728.0,0.21113081]
[1746480981389,0.003,94729.0,94728.0,5.27135904]
[1746480984194,0.003,94729.0,94728.0,5.38775904]
[1746480984770,0.003,94729.0,94728.0,5.37235904]
[1746480989966,0.003,94729.0,94728.0,5.38282361]
[1746480991906,0.02276893,94729.0,94728.0,5.38282361]
[1746480992303,0.02276893,94729.0,94728.0,5.22012361]
[1746480998612,0.26529751,94729.0,94728.0,0.11122823]
[1746480999021,0.26529751,94729.0,94728.0,0.101]
[1746480999860,0.28185065,94729.0,94728.0,0.0854]
[1746481000267,0.28185065,94729.0,94728.0,0.0844]
[1746481000855,0.78185065,94729.0,94728.0,0.0844]
[1746481004412,0.78185065,94729.0,94728.0,0.08415135]
[1746481010749,0.28185065,94729.0,94728.0,0.08415135]
[1746481011412,0.07072207,94729.0,94728.0,0.30327608]
[1746481011610,0.05572207,94729.0,94728.0,0.30327608]
[1746481011849,0.03932207,94729.0,94728.0,0.30327608]
[1746481015257,0.0302031,94729.0,94728.0,0.30327608]
[1746481015607,0.24133168,94729.0,94728.0,0.09214527]
[1746481015812,0.24133168,94729.0,94728.0,0.08415135]
[1746481015813,0.0302031,94729.0,94728.0,0.08415135]
[1746481016643,0.0302031,94729.0,94728.0,0.30326497]
[1746481017082,0.0302031,94729.0,94728.0,0.09213416]
[1746481017906,0.01364996,94729.0,94728.0,0.09213416]
[1746481018418,0.01364996,94729.0,94728.0,0.30326497]
[1746481019094,0.01364996,94729.0,94728.0,0.09213416]
[1746481019267,0.22477854,94729.0,94728.0,0.09213416]
[1746481019476,0.01364996,94729.0,94728.0,0.09213416]
[1746481020923,0.03020267,94729.0,94728.0,0.09213416]
[1746481021127,0.03002455,94729.0,94728.0,0.09213416]
[1746481021331,0.24115313,94729.0,94728.0,0.09213416]
[1746481024475,0.27255313,94729.0,94728.0,0.09213416]
[1746481024881,0.27255313,94729.0,94728.0,0.08415135]
[1746481025379,0.25715313,94729.0,94728.0,0.08415135]
[1746481026228,0.27355313,94729.0,94728.0,0.08415135]
[1746481027597,0.25700042,94729.0,94728.0,0.08415135]
[1746481030559,0.27355363,94729.0,94728.0,0.08415135]
[1746481032027,0.25715363,94729.0,94728.0,0.08415135]
[1746481032432,0.24115363,94729.0,94728.0,0.08415135]
[1746481033370,0.24115363,94729.0,94728.0,0.09108054]
[1746481034428,0.24115363,94729.0,94728.0,0.08415135]
[1746481035020,0.24115363,94729.0,94728.0,0.09108054]
[1746481035650,0.03002505,94729.0,94728.0,0.09108054]
[1746481036695,0.01347184,94729.0,94728.0,0.09108054]
[1746481038836,0.01347184,94729.0,94728.0,0.30221135]
[1746481039033,0.01347184,94729.0,94728.0,0.09108054]
[1746481039649,0.03002478,94729.0,94728.0,0.30221135]
[1746481039917,0.03002478,94729.0,94728.0,0.09108054]
[1746481040395,0.03002478,94729.0,94728.0,0.30221135]
[1746481041853,0.03002478,94729.0,94728.0,0.09108054]
[1746481042498,0.24115336,94729.0,94728.0,0.09108054]
[1746481043661,0.03002478,94729.0,94728.0,0.08415135]
[1746481044030,0.03002478,94729.0,94728.0,0.09020227]
[1746481044270,0.24115336,94729.0,94728.0,0.09020227]
[1746481044642,0.03002478,94729.0,94728.0,0.09020227]
[1746481044786,0.24115336,94729.0,94728.0,0.09020227]
[1746481045228,0.03002478,94729.0,94728.0,0.09020227]
[1746481045640,0.24115336,94729.0,94728.0,0.09020227]
[1746481046984,0.22460042,94729.0,94728.0,0.09020227]
[1746481047182,0.01347184,94729.0,94728.0,0.30133308]
[1746481047356,0.22460042,94729.0,94728.0,0.09020227]
[1746481049898,0.24115343,94729.0,94728.0,0.09020227]
[1746481052493,0.03002485,94729.0,94728.0,0.09020227]
[1746481053211,0.03002485,94729.0,94728.0,0.30133308]
[1746481053523,0.03002485,94729.0,94728.0,0.09020227]
[1746481053861,0.03002485,94729.0,94728.0,0.30133308]
[1746481054890,0.01655301,94729.0,94728.0,0.30133308]
[1746481056280,0.01655301,94729.0,94728.0,0.33323308]
[1746481056595,0.01982776,94729.0,94728.0,0.33323308]
[1746481057976,0.04957667,94739.0,94738.0,0.21110853]
[1746481058334,0.04957667,94739.0,94738.0,0.21710513]
[1746481058536,0.04957667,94739.0,94738.0,0.24740513]
[1746481058960,0.04957667,94739.0,94738.0,0.21710513]
[1746481059801,0.08594063,94739.0,94738.0,0.21710513]
[1746481060745,0.03636396,94739.0,94738.0,0.21710513]
[1746481066082,0.03618984,94739.0,94738.0,0.21710513]
[1746481066760,0.01963897,94739.0,94738.0,0.21710513]
[1746481069823,0.03618949,94739.0,94738.0,0.24840513]
[1746481072056,0.03618949,94739.0,94738.0,0.21710513]
[1746481078921,0.03618949,94739.0,94738.0,0.21510513]
[1746481084090,0.01963897,94739.0,94738.0,0.21510513]
[1746481090380,0.01963897,94739.0,94738.0,0.29925648]
[1746481091080,0.01963897,94739.0,94738.0,0.32985648]
[1746481097251,0.01963897,94739.0,94738.0,0.34019596]
[1746481108506,0.01055297,94760.0,94757.0,0.21106409]
[1746481108675,0.01055297,94760.0,94758.0,0.00515323]
[1746481109178,0.2216147,94760.0,94758.0,0.00515323]
[1746481109377,0.21106174,94759.0,94758.0,0.00515323]
[1746481109834,0.21106174,94759.0,94757.0,0.21106575]
[1746481110047,0.21106174,94759.0,94758.0,0.00515323]
[1746481110243,0.01654915,94759.0,94758.0,0.00515323]
[1746481110693,0.01654915,94759.0,94758.0,0.00477223]
[1746481113090,0.22761089,94759.0,94758.0,0.00477223]
[1746481113506,0.01654915,94759.0,94758.0,0.00477223]
[1746481113680,0.22761089,94759.0,94758.0,0.00477223]
[1746481113882,0.22761089,94759.0,94756.0,0.22162176]
[1746481114086,0.22761089,94759.0,94757.0,0.00510789]
[1746481115389,0.22761089,94759.0,94757.0,0.21617385]
[1746481116330,0.22761089,94759.0,94757.0,0.00510789]
[1746481117680,0.21106397,94758.0,94757.0,0.00510789]
[1746481118979,0.22761089,94759.0,94757.0,0.21617351]
[1746481120001,0.21106397,94758.0,94757.0,0.00510789]
[1746481120215,0.22761089,94759.0,94757.0,0.00510789]
[1746481120377,0.22761089,94759.0,94756.0,0.21106626]
[1746481120585,0.22761089,94759.0,94758.0,0.00510561]
[1746481121552,0.21107113,94755.0,94753.0,0.21107461]
[1746481121888,0.01654915,94759.0,94756.0,0.22162112]
[1746481122097,0.01654915,94759.0,94758.0,0.21106397]
[1746481122471,0.01654915,94759.0,94758.0,0.22766397]
[1746481123036,0.01654915,94759.0,94757.0,0.2110662]
[1746481123218,0.01654915,94759.0,94758.0,0.21106397]
[1746481123421,0.01654915,94759.0,94757.0,0.2110662]
[1746481124231,0.01654915,94759.0,94758.0,0.21106397]
[1746481124413,0.01654915,94759.0,94757.0,0.2110662]
[1746481124737,0.01654915,94759.0,94758.0,0.21106397]
[1746481124978,0.01654915,94759.0,94757.0,0.2110662]
[1746481125581,0.01654915,94759.0,94758.0,0.21106397]
[1746481125911,0.01654915,94759.0,94758.0,0.24296397]
[1746481126528,0.04957667,94762.0,94761.0,0.21105729]
[1746481126731,0.04957667,94762.0,94761.0,0.24295729]
[1746481127457,0.06938672,94762.0,94761.0,0.24295729]
[1746481128215,0.06741048,94762.0,94761.0,0.24295729]
[1746481128793,0.01981005,94762.0,94761.0,0.24295729]
[1746481130448,0.03635656,94762.0,94761.0,0.24295729]
[1746481130912,0.03635656,94762.0,94761.0,0.24794334]
[1746481135636,0.03615743,94762.0,94761.0,0.24794334]
[1746481136746,0.01961092,94762.0,94761.0,0.24794334]
[1746481139306,0.01961092,94762.0,94761.0,0.24894334]
[1746481139707,0.03615713,94762.0,94761.0,0.24894334]
[1746481141662,0.03608577,94762.0,94761.0,0.24894334]
[1746481145076,0.01654621,94762.0,94761.0,0.24894334]
[1746481150454,0.56156895,94779.0,94768.0,0.2110417]
[1746481150834,0.56156895,94779.0,94768.0,0.21595244]
[1746481152154,0.01055097,94778.0,94768.0,0.21595244]
[1746481152275,0.2215721,94778.0,94768.0,0.21595244]
[1746481152713,0.01055097,94778.0,94768.0,0.21595244]
[1746481152921,0.35055097,94778.0,94768.0,0.21595244]
[1746481153354,0.0205459,94769.0,94768.0,0.21595244]
[1746481158676,0.004,94769.0,94768.0,0.21595244]
[1746481160441,0.00388492,94769.0,94768.0,0.21595244]
[1746481160642,0.00388492,94769.0,94768.0,0.23165244]
[1746481160839,0.00388492,94769.0,94768.0,0.24715244]
[1746481165932,0.00388492,94769.0,94768.0,0.24815244]
[1746481174440,0.00388492,94769.0,94768.0,0.24615244]
[1746481177402,0.00388492,94769.0,94768.0,4.29375244]
[1746481185426,0.00373182,94769.0,94768.0,4.29375244]
[1746481188003,0.00373182,94769.0,94768.0,0.24615244]
[1746481188384,0.00373182,94769.0,94768.0,5.29615244]
[1746481194120,0.00362475,94769.0,94768.0,5.29615244]
[1746481196415,0.0234382,94769.0,94768.0,5.29615244]
[1746481197544,0.0234382,94769.0,94768.0,5.09285244]
[1746481199186,0.0234382,94769.0,94768.0,4.61895244]
[1746481199696,0.0234382,94769.0,94768.0,3.89305244]
[1746481200526,0.02332512,94769.0,94768.0,3.89305244]
[1746481200759,0.001,94789.0,94788.0,0.21099717]
[1746481201195,0.001,94789.0,94788.0,0.21470995]
[1746481201362,0.001,94789.0,94788.0,0.00371278]
[1746481201363,0.24429494,94789.0,94788.0,0.00371278]
[1746481201788,0.016,94783.0,94780.0,0.21101286]
[1746481201922,0.0323,94782.0,94781.0,0.21101143]
[1746481202123,0.0323,94782.0,94781.0,0.2147402]
[1746481202327,0.0323,94782.0,94781.0,0.00372877]
[1746481203014,0.0488431,94782.0,94781.0,0.21474152]
[1746481203130,0.0488431,94782.0,94781.0,0.00372877]
[1746481203331,0.0309,94781.0,94780.0,0.21101492]
[1746481203527,0.0309,94781.0,94779.0,0.21101712]